[Event "Titled Tuesday Blitz August 15 Early 2023"]
[White "Kamsky, Gata"]
[Black "Duda, Jan-Krzysztof"]
[WhiteFideId "2000024"]
[BlackFideId "1170546"]
[WhiteElo "2929"]
[BlackElo "3036"]
[Result "1/2-1/2"]
[Round "8"]
[TimeControl "180+1"]
[Date "2023.08.15"]
[WhiteClock "0:00:08"]
[BlackClock "0:00:11"]
[Board "13"]

1. d4 {[%clk 0:03:00]}  Nf6 {[%clk 0:02:56]} 2. Bf4 {[%clk 0:02:53]}  c5 {[%clk 0:02:56]} 3. e3 {[%clk 0:02:53]}  Qb6 {[%clk 0:02:56]} 4. Na3 {[%clk 0:02:47]}  d6 {[%clk 0:02:54]} 5. Nc4 {[%clk 0:02:44]}  Qc7 {[%clk 0:02:53]} 6. c3 {[%clk 0:02:41]}  g6 {[%clk 0:02:53]} 7. h3 {[%clk 0:02:39]}  b6 {[%clk 0:02:48]} 8. Nf3 {[%clk 0:02:36]}  Bb7 {[%clk 0:02:48]} 9. a4 {[%clk 0:02:33]}  Nbd7 {[%clk 0:02:38]} 10. Bh2 {[%clk 0:02:30]}  Bg7 {[%clk 0:02:36]} 11. Bd3 {[%clk 0:02:23]}  O-O {[%clk 0:02:31]} 12. O-O {[%clk 0:02:22]}  a6 {[%clk 0:02:20]} 13. Ncd2 {[%clk 0:02:20]}  e5 {[%clk 0:02:16]} 14. dxe5 {[%clk 0:02:11]}  Nxe5 {[%clk 0:02:11]} 15. Be2 {[%clk 0:02:03]}  Rad8 {[%clk 0:02:05]} 16. Qc2 {[%clk 0:01:57]}  Nxf3+ {[%clk 0:01:50]} 17. Bxf3 {[%clk 0:01:56]}  Rfe8 {[%clk 0:01:46]} 18. Rfd1 {[%clk 0:01:54]}  Bxf3 {[%clk 0:01:43]} 19. Nxf3 {[%clk 0:01:53]}  Qc6 {[%clk 0:01:43]} 20. Qe2 {[%clk 0:01:45]}  c4 {[%clk 0:01:24]} 21. Rd4 {[%clk 0:01:32]}  b5 {[%clk 0:01:19]} 22. axb5 {[%clk 0:01:31]}  axb5 {[%clk 0:01:19]} 23. Rdd1 {[%clk 0:01:15]}  Ne4 {[%clk 0:01:19]} 24. Nd4 {[%clk 0:01:15]}  Qb6 {[%clk 0:01:14]} 25. Ra2 {[%clk 0:00:24]}  Nc5 {[%clk 0:01:03]} 26. Qf3 {[%clk 0:00:17]}  Nd3 {[%clk 0:00:25]} 27. Bg3 {[%clk 0:00:15]}  b4 {[%clk 0:00:23]} 28. cxb4 {[%clk 0:00:11]}  Bxd4 {[%clk 0:00:12]} 29. exd4 {[%clk 0:00:11]}  Nxb4 {[%clk 0:00:11]} 30. Ra3 {[%clk 0:00:09]}  Nc2 {[%clk 0:00:09]} 31. Ra2 {[%clk 0:00:07]}  Nxd4 {[%clk 0:00:08]} 32. Qf6 {[%clk 0:00:06]}  Ne2+ {[%clk 0:00:08]} 33. Kh2 {[%clk 0:00:07]}  Re6 {[%clk 0:00:04]} 34. Qf3 {[%clk 0:00:06]}  Nxg3 {[%clk 0:00:04]} 35. fxg3 {[%clk 0:00:06]}  Re3 {[%clk 0:00:03]} 36. Qf2 {[%clk 0:00:05]}  Qb3 {[%clk 0:00:03]} 37. Ra3 {[%clk 0:00:04]}  Qxd1 {[%clk 0:00:02]} 38. Rxe3 {[%clk 0:00:04]}  d5 {[%clk 0:00:03]} 39. Re7 {[%clk 0:00:04]}  Rf8 {[%clk 0:00:04]} 40. Qf6 {[%clk 0:00:04]}  d4 {[%clk 0:00:03]} 41. Re4 {[%clk 0:00:03]}  d3 {[%clk 0:00:03]} 42. Rxc4 {[%clk 0:00:03]}  Qe2 {[%clk 0:00:03]} 43. Rd4 {[%clk 0:00:03]}  Qxb2 {[%clk 0:00:02]} 44. Qd6 {[%clk 0:00:03]}  Re8 {[%clk 0:00:03]} 45. Rxd3 {[%clk 0:00:03]}  Re2 {[%clk 0:00:03]} 46. Qd8+ {[%clk 0:00:03]}  Kg7 {[%clk 0:00:03]} 47. Qd4+ {[%clk 0:00:04]}  Qxd4 {[%clk 0:00:03]} 48. Rxd4 {[%clk 0:00:05]}  h5 {[%clk 0:00:04]} 49. g4 {[%clk 0:00:04]}  h4 {[%clk 0:00:05]} 50. g5 {[%clk 0:00:04]}  Re5 {[%clk 0:00:05]} 51. Rxh4 {[%clk 0:00:05]}  Rxg5 {[%clk 0:00:06]} 52. Rf4 {[%clk 0:00:05]}  Ra5 {[%clk 0:00:06]} 53. h4 {[%clk 0:00:06]}  Ra6 {[%clk 0:00:06]} 54. Kh3 {[%clk 0:00:06]}  Ra7 {[%clk 0:00:07]} 55. g3 {[%clk 0:00:06]}  Ra6 {[%clk 0:00:08]} 56. Re4 {[%clk 0:00:07]}  Ra7 {[%clk 0:00:08]} 57. Rd4 {[%clk 0:00:07]}  Ra6 {[%clk 0:00:09]} 58. Rc4 {[%clk 0:00:08]}  Ra7 {[%clk 0:00:09]} 59. Rd4 {[%clk 0:00:08]}  Ra6 {[%clk 0:00:10]} 60. Rc4 {[%clk 0:00:08]}  Ra7 {[%clk 0:00:11]} 61. Rd4 {[%clk 0:00:08]} 1/2-1/2


[Site "https://www.chess.com"]

[Event "Titled Tuesday Blitz August 15 Early 2023"]
[White "Martinez Alcantara, Jose Eduardo"]
[Black "Kazakouski, Valery"]
[WhiteFideId "3805662"]
[BlackFideId "13507443"]
[WhiteElo "3004"]
[BlackElo "2927"]
[Result "1-0"]
[Round "8"]
[TimeControl "180+1"]
[Date "2023.08.15"]
[WhiteClock "0:01:04"]
[BlackClock "0:00:07"]
[Board "14"]

1. e4 {[%clk 0:03:00]}  c5 {[%clk 0:02:55]} 2. Nf3 {[%clk 0:03:00]}  a6 {[%clk 0:02:55]} 3. c3 {[%clk 0:03:01]}  d5 {[%clk 0:02:55]} 4. exd5 {[%clk 0:03:01]}  Qxd5 {[%clk 0:02:55]} 5. d4 {[%clk 0:03:02]}  Bg4 {[%clk 0:02:56]} 6. Be2 {[%clk 0:03:02]}  Nf6 {[%clk 0:02:56]} 7. Be3 {[%clk 0:03:03]}  cxd4 {[%clk 0:02:56]} 8. cxd4 {[%clk 0:03:04]}  e6 {[%clk 0:02:56]} 9. Nc3 {[%clk 0:03:04]}  Qd6 {[%clk 0:02:57]} 10. Qb3 {[%clk 0:03:04]}  Qb4 {[%clk 0:02:57]} 11. h3 {[%clk 0:02:59]}  Bh5 {[%clk 0:02:56]} 12. g4 {[%clk 0:03:00]}  Bg6 {[%clk 0:02:56]} 13. Ne5 {[%clk 0:03:00]}  Be4 {[%clk 0:02:47]} 14. O-O {[%clk 0:03:00]}  Bd5 {[%clk 0:02:07]} 15. Nxd5 {[%clk 0:02:58]}  Nxd5 {[%clk 0:02:07]} 16. Bf3 {[%clk 0:02:57]}  Qxb3 {[%clk 0:02:02]} 17. axb3 {[%clk 0:02:57]}  Nd7 {[%clk 0:02:02]} 18. Bxd5 {[%clk 0:02:51]}  exd5 {[%clk 0:02:03]} 19. Nd3 {[%clk 0:02:52]}  Bd6 {[%clk 0:01:58]} 20. Bf4 {[%clk 0:02:52]}  Bxf4 {[%clk 0:01:56]} 21. Nxf4 {[%clk 0:02:53]}  Nb6 {[%clk 0:01:57]} 22. Ra5 {[%clk 0:02:52]}  O-O-O {[%clk 0:01:50]} 23. Rc5+ {[%clk 0:02:44]}  Kb8 {[%clk 0:01:50]} 24. Rfc1 {[%clk 0:02:43]}  Rd7 {[%clk 0:01:41]} 25. f3 {[%clk 0:02:39]}  Re8 {[%clk 0:01:38]} 26. Kf2 {[%clk 0:02:39]}  Red8 {[%clk 0:01:17]} 27. Nh5 {[%clk 0:02:33]}  Rg8 {[%clk 0:01:08]} 28. h4 {[%clk 0:02:32]}  Rd6 {[%clk 0:00:49]} 29. Nf4 {[%clk 0:02:28]}  Rgd8 {[%clk 0:00:47]} 30. R1c2 {[%clk 0:02:23]}  Nc8 {[%clk 0:00:44]} 31. Re2 {[%clk 0:02:23]}  R6d7 {[%clk 0:00:44]} 32. b4 {[%clk 0:02:20]}  b6 {[%clk 0:00:42]} 33. Rc3 {[%clk 0:02:14]}  Na7 {[%clk 0:00:42]} 34. Nh5 {[%clk 0:02:10]}  Nb5 {[%clk 0:00:38]} 35. Rd3 {[%clk 0:02:10]}  Rg8 {[%clk 0:00:36]} 36. g5 {[%clk 0:02:10]}  Kb7 {[%clk 0:00:34]} 37. Kg3 {[%clk 0:02:07]}  Nd6 {[%clk 0:00:33]} 38. Kg4 {[%clk 0:02:07]}  h6 {[%clk 0:00:30]} 39. Nf4 {[%clk 0:02:04]}  hxg5 {[%clk 0:00:29]} 40. hxg5 {[%clk 0:02:04]}  Nb5 {[%clk 0:00:28]} 41. Re5 {[%clk 0:02:04]}  Rgd8 {[%clk 0:00:29]} 42. Rd1 {[%clk 0:02:02]}  f6 {[%clk 0:00:24]} 43. Ree1 {[%clk 0:01:40]}  fxg5 {[%clk 0:00:24]} 44. Ne6 {[%clk 0:01:41]}  Rc8 {[%clk 0:00:24]} 45. Kxg5 {[%clk 0:01:26]}  Rc2 {[%clk 0:00:23]} 46. b3 {[%clk 0:01:24]}  Rc3 {[%clk 0:00:23]} 47. f4 {[%clk 0:01:18]}  Rxb3 {[%clk 0:00:23]} 48. Rb1 {[%clk 0:01:16]}  Rg3+ {[%clk 0:00:22]} 49. Kh4 {[%clk 0:01:17]}  Rg2 {[%clk 0:00:21]} 50. Kh3 {[%clk 0:01:17]}  Rg6 {[%clk 0:00:21]} 51. Rbc1 {[%clk 0:01:09]}  Nd6 {[%clk 0:00:19]} 52. Nf8 {[%clk 0:01:04]}  Rh6+ {[%clk 0:00:18]} 53. Kg4 {[%clk 0:01:04]}  Rf7 {[%clk 0:00:17]} 54. Ne6 {[%clk 0:01:05]}  Ne4 {[%clk 0:00:07]} 55. Nd8+ {[%clk 0:01:04]} 1-0


[Site "https://www.chess.com"]

[Event "Titled Tuesday Blitz August 15 Early 2023"]
[White "Galchenko, Matvey"]
[Black "Andreikin, Dmitry"]
[WhiteFideId "24175480"]
[BlackFideId "4158814"]
[WhiteElo "2903"]
[BlackElo "2998"]
[Result "0-1"]
[Round "8"]
[TimeControl "180+1"]
[Date "2023.08.15"]
[WhiteClock "0:00:02"]
[BlackClock "0:00:26"]
[Board "16"]

1. f4 {[%clk 0:03:00]}  b6 {[%clk 0:02:59]} 2. Nf3 {[%clk 0:02:57]}  Bb7 {[%clk 0:02:58]} 3. g3 {[%clk 0:02:58]}  Bxf3 {[%clk 0:02:57]} 4. exf3 {[%clk 0:02:59]}  e6 {[%clk 0:02:58]} 5. d4 {[%clk 0:03:00]}  Ne7 {[%clk 0:02:57]} 6. Bd3 {[%clk 0:02:58]}  g6 {[%clk 0:02:56]} 7. O-O {[%clk 0:02:59]}  Bg7 {[%clk 0:02:57]} 8. c3 {[%clk 0:02:58]}  c5 {[%clk 0:02:55]} 9. dxc5 {[%clk 0:02:54]}  bxc5 {[%clk 0:02:56]} 10. Be3 {[%clk 0:02:55]}  d6 {[%clk 0:02:55]} 11. Bb5+ {[%clk 0:02:43]}  Nbc6 {[%clk 0:02:55]} 12. Qa4 {[%clk 0:02:44]}  Qc7 {[%clk 0:02:49]} 13. Na3 {[%clk 0:02:38]}  O-O {[%clk 0:02:48]} 14. Rad1 {[%clk 0:02:38]}  Rfb8 {[%clk 0:02:35]} 15. Rd2 {[%clk 0:02:31]}  a6 {[%clk 0:02:23]} 16. Be2 {[%clk 0:02:19]}  Na5 {[%clk 0:01:49]} 17. Rfd1 {[%clk 0:01:39]}  d5 {[%clk 0:01:33]} 18. b4 {[%clk 0:01:01]}  Nb7 {[%clk 0:01:26]} 19. Rc2 {[%clk 0:00:53]}  c4 {[%clk 0:01:22]} 20. Rb1 {[%clk 0:00:41]}  a5 {[%clk 0:01:17]} 21. bxa5 {[%clk 0:00:27]}  Rxa5 {[%clk 0:01:09]} 22. Qb4 {[%clk 0:00:15]}  Nc6 {[%clk 0:01:06]} 23. Bb6 {[%clk 0:00:05]}  Qc8 {[%clk 0:00:42]} 24. Qb2 {[%clk 0:00:04]}  Ra6 {[%clk 0:00:29]} 25. Qc1 {[%clk 0:00:05]}  Bf8 {[%clk 0:00:27]} 26. Nxc4 {[%clk 0:00:02]}  dxc4 {[%clk 0:00:27]} 27. Bxc4 {[%clk 0:00:03]}  Rxb6 {[%clk 0:00:27]} 28. Rxb6 {[%clk 0:00:02]}  Bc5+ {[%clk 0:00:26]} 0-1


[Site "https://www.chess.com"]

[Event "Titled Tuesday Blitz August 15 Early 2023"]
[White "Di Nicolantonio, Lucas"]
[Black "Makarian, Rudik"]
[WhiteFideId "680460"]
[BlackFideId "44105681"]
[WhiteElo "2619"]
[BlackElo "2972"]
[Result "0-1"]
[Round "8"]
[TimeControl "180+1"]
[Date "2023.08.15"]
[WhiteClock "0:00:00"]
[BlackClock "0:00:29"]
[Board "17"]

1. Nf3 {[%clk 0:03:00]}  Nf6 {[%clk 0:02:58]} 2. c4 {[%clk 0:03:00]}  e6 {[%clk 0:02:58]} 3. Nc3 {[%clk 0:03:01]}  d6 {[%clk 0:02:59]} 4. d4 {[%clk 0:02:59]}  g6 {[%clk 0:02:57]} 5. e4 {[%clk 0:02:59]}  Bg7 {[%clk 0:02:57]} 6. Be2 {[%clk 0:03:00]}  O-O {[%clk 0:02:57]} 7. O-O {[%clk 0:03:00]}  Nbd7 {[%clk 0:02:57]} 8. Re1 {[%clk 0:03:00]}  e5 {[%clk 0:02:57]} 9. dxe5 {[%clk 0:02:51]}  Nxe5 {[%clk 0:02:54]} 10. Nxe5 {[%clk 0:02:46]}  dxe5 {[%clk 0:02:55]} 11. c5 {[%clk 0:02:42]}  Be6 {[%clk 0:02:53]} 12. Be3 {[%clk 0:02:41]}  Qc8 {[%clk 0:02:28]} 13. Qc2 {[%clk 0:02:33]}  Rd8 {[%clk 0:02:23]} 14. Red1 {[%clk 0:02:31]}  c6 {[%clk 0:02:22]} 15. f3 {[%clk 0:02:23]}  Qc7 {[%clk 0:02:21]} 16. b4 {[%clk 0:02:21]}  a6 {[%clk 0:02:14]} 17. Na4 {[%clk 0:02:14]}  Rxd1+ {[%clk 0:02:11]} 18. Rxd1 {[%clk 0:02:13]}  Rd8 {[%clk 0:02:12]} 19. a3 {[%clk 0:02:04]}  h5 {[%clk 0:02:11]} 20. Nb6 {[%clk 0:02:03]}  Rxd1+ {[%clk 0:01:34]} 21. Qxd1 {[%clk 0:02:02]}  Nd7 {[%clk 0:01:35]} 22. Nc4 {[%clk 0:01:54]}  Bxc4 {[%clk 0:01:22]} 23. Bxc4 {[%clk 0:01:54]}  Bf6 {[%clk 0:01:23]} 24. g3 {[%clk 0:01:42]}  Kg7 {[%clk 0:01:22]} 25. Kg2 {[%clk 0:01:42]}  Nf8 {[%clk 0:01:17]} 26. Qd2 {[%clk 0:01:40]}  Qe7 {[%clk 0:01:13]} 27. Bh6+ {[%clk 0:01:30]}  Kg8 {[%clk 0:01:12]} 28. Bxf8 {[%clk 0:01:25]}  Kxf8 {[%clk 0:01:11]} 29. h4 {[%clk 0:01:17]}  Kg7 {[%clk 0:01:09]} 30. a4 {[%clk 0:01:06]}  a5 {[%clk 0:01:00]} 31. Bb3 {[%clk 0:00:47]}  axb4 {[%clk 0:00:58]} 32. Qxb4 {[%clk 0:00:47]}  Qd7 {[%clk 0:00:57]} 33. a5 {[%clk 0:00:39]}  g5 {[%clk 0:00:50]} 34. hxg5 {[%clk 0:00:37]}  Bxg5 {[%clk 0:00:51]} 35. Qc3 {[%clk 0:00:22]}  Bf6 {[%clk 0:00:47]} 36. Bc4 {[%clk 0:00:20]}  Qd1 {[%clk 0:00:39]} 37. Qd3 {[%clk 0:00:17]}  Qc1 {[%clk 0:00:36]} 38. Bb3 {[%clk 0:00:13]}  Qxc5 {[%clk 0:00:31]} 39. Qd7 {[%clk 0:00:13]}  Qe7 {[%clk 0:00:31]} 40. Qf5 {[%clk 0:00:00]}  Qb4 {[%clk 0:00:29]} 0-1


[Site "https://www.chess.com"]

[Event "Titled Tuesday Blitz August 15 Early 2023"]
[White "So, Wesley"]
[Black "Lysyj, Igor"]
[WhiteFideId "5202213"]
[BlackFideId "4150120"]
[WhiteElo "3118"]
[BlackElo "2878"]
[Result "1-0"]
[Round "8"]
[TimeControl "180+1"]
[Date "2023.08.15"]
[WhiteClock "0:00:17"]
[BlackClock "0:00:01"]
[Board "18"]

1. b3 {[%clk 0:02:54]}  Nf6 {[%clk 0:02:58]} 2. Bb2 {[%clk 0:02:54]}  e6 {[%clk 0:02:58]} 3. e3 {[%clk 0:02:54]}  Be7 {[%clk 0:02:59]} 4. g4 {[%clk 0:02:53]}  h6 {[%clk 0:02:54]} 5. Nf3 {[%clk 0:02:53]}  b6 {[%clk 0:02:52]} 6. Rg1 {[%clk 0:02:52]}  Bb7 {[%clk 0:02:51]} 7. h4 {[%clk 0:02:53]}  d5 {[%clk 0:02:36]} 8. g5 {[%clk 0:02:51]}  hxg5 {[%clk 0:02:36]} 9. hxg5 {[%clk 0:02:52]}  Ne4 {[%clk 0:02:36]} 10. Bxg7 {[%clk 0:02:33]}  Rg8 {[%clk 0:02:35]} 11. Bb2 {[%clk 0:02:30]}  Nd7 {[%clk 0:02:00]} 12. g6 {[%clk 0:02:02]}  Bf6 {[%clk 0:01:48]} 13. gxf7+ {[%clk 0:01:55]}  Kxf7 {[%clk 0:01:47]} 14. Rxg8 {[%clk 0:01:55]}  Qxg8 {[%clk 0:01:46]} 15. Bxf6 {[%clk 0:01:54]}  Ndxf6 {[%clk 0:01:34]} 16. d3 {[%clk 0:01:52]}  Nd6 {[%clk 0:01:31]} 17. Nbd2 {[%clk 0:01:48]}  Qg7 {[%clk 0:01:18]} 18. Qe2 {[%clk 0:01:41]}  Nfe4 {[%clk 0:01:14]} 19. d4 {[%clk 0:01:41]}  Ke7 {[%clk 0:01:10]} 20. Nxe4 {[%clk 0:01:32]}  Nxe4 {[%clk 0:01:09]} 21. Nd2 {[%clk 0:01:28]}  Rf8 {[%clk 0:00:44]} 22. Nxe4 {[%clk 0:01:28]}  dxe4 {[%clk 0:00:44]} 23. Qh5 {[%clk 0:01:08]}  Qg1 {[%clk 0:00:38]} 24. Qh4+ {[%clk 0:01:07]}  Kd7 {[%clk 0:00:37]} 25. a4 {[%clk 0:00:52]}  a5 {[%clk 0:00:36]} 26. c4 {[%clk 0:00:51]}  Kc8 {[%clk 0:00:28]} 27. Ra2 {[%clk 0:00:50]}  Kb8 {[%clk 0:00:26]} 28. Qh6 {[%clk 0:00:47]}  Qg8 {[%clk 0:00:21]} 29. Rb2 {[%clk 0:00:41]}  Bc8 {[%clk 0:00:20]} 30. b4 {[%clk 0:00:40]}  axb4 {[%clk 0:00:20]} 31. Rxb4 {[%clk 0:00:41]}  Rf5 {[%clk 0:00:19]} 32. Rb5 {[%clk 0:00:37]}  Qg1 {[%clk 0:00:13]} 33. Rxf5 {[%clk 0:00:37]}  exf5 {[%clk 0:00:13]} 34. Qf8 {[%clk 0:00:28]}  Kb7 {[%clk 0:00:11]} 35. c5 {[%clk 0:00:25]}  bxc5 {[%clk 0:00:11]} 36. Qxc5 {[%clk 0:00:21]}  Bd7 {[%clk 0:00:11]} 37. Qd5+ {[%clk 0:00:21]}  Bc6 {[%clk 0:00:10]} 38. Qc4 {[%clk 0:00:20]}  Qg6 {[%clk 0:00:08]} 39. Qa6+ {[%clk 0:00:20]}  Kb8 {[%clk 0:00:08]} 40. a5 {[%clk 0:00:19]}  Qd6 {[%clk 0:00:07]} 41. Qc4 {[%clk 0:00:20]}  Bd7 {[%clk 0:00:06]} 42. Qc5 {[%clk 0:00:19]}  Qe6 {[%clk 0:00:03]} 43. Bc4 {[%clk 0:00:18]}  Qd6 {[%clk 0:00:01]} 44. Qxd6 {[%clk 0:00:17]} 1-0


[Site "https://www.chess.com"]

[Event "Titled Tuesday Blitz August 15 Early 2023"]
[White "Dubov, Daniil"]
[Black "Shcherbin, Matvei"]
[WhiteFideId "24126055"]
[BlackFideId "24125164"]
[WhiteElo "3058"]
[BlackElo "2744"]
[Result "1-0"]
[Round "8"]
[TimeControl "180+1"]
[Date "2023.08.15"]
[WhiteClock "0:00:07"]
[BlackClock "0:00:05"]
[Board "19"]

1. e4 {[%clk 0:03:00]}  c5 {[%clk 0:02:51]} 2. b4 {[%clk 0:02:59]}  cxb4 {[%clk 0:02:46]} 3. a3 {[%clk 0:02:59]}  d5 {[%clk 0:02:44]} 4. exd5 {[%clk 0:02:59]}  Qxd5 {[%clk 0:02:43]} 5. Nf3 {[%clk 0:02:59]}  e5 {[%clk 0:02:35]} 6. c4 {[%clk 0:02:58]}  bxc3 {[%clk 0:02:34]} 7. Nxc3 {[%clk 0:02:58]}  Qe6 {[%clk 0:02:33]} 8. Bb5+ {[%clk 0:02:43]}  Bd7 {[%clk 0:02:27]} 9. O-O {[%clk 0:02:42]}  Bd6 {[%clk 0:02:27]} 10. d4 {[%clk 0:02:33]}  Ne7 {[%clk 0:02:04]} 11. dxe5 {[%clk 0:01:50]}  Bc7 {[%clk 0:02:02]} 12. Bd3 {[%clk 0:01:45]}  h6 {[%clk 0:01:52]} 13. Ne4 {[%clk 0:01:24]}  O-O {[%clk 0:01:38]} 14. Re1 {[%clk 0:01:22]}  Ng6 {[%clk 0:01:32]} 15. Nc5 {[%clk 0:01:15]}  Qe7 {[%clk 0:01:31]} 16. e6 {[%clk 0:01:00]}  Bc6 {[%clk 0:01:21]} 17. Qc2 {[%clk 0:00:53]}  Nf4 {[%clk 0:01:11]} 18. Bxf4 {[%clk 0:00:37]}  Bxf4 {[%clk 0:01:11]} 19. exf7+ {[%clk 0:00:31]}  Qxf7 {[%clk 0:01:09]} 20. Bc4 {[%clk 0:00:30]}  Bd5 {[%clk 0:01:09]} 21. Bxd5 {[%clk 0:00:31]}  Qxd5 {[%clk 0:01:09]} 22. Rad1 {[%clk 0:00:32]}  Qf7 {[%clk 0:01:05]} 23. Ne6 {[%clk 0:00:31]}  Nc6 {[%clk 0:00:51]} 24. Nxf8 {[%clk 0:00:31]}  Rxf8 {[%clk 0:00:52]} 25. Qe4 {[%clk 0:00:31]}  Bc7 {[%clk 0:00:35]} 26. Rd5 {[%clk 0:00:28]}  Bb6 {[%clk 0:00:34]} 27. h3 {[%clk 0:00:26]}  Kh8 {[%clk 0:00:32]} 28. Qd3 {[%clk 0:00:25]}  Qf6 {[%clk 0:00:27]} 29. Rd7 {[%clk 0:00:14]}  Qb2 {[%clk 0:00:26]} 30. Rf1 {[%clk 0:00:11]}  Ne5 {[%clk 0:00:16]} 31. Nxe5 {[%clk 0:00:10]}  Qxe5 {[%clk 0:00:17]} 32. Qd2 {[%clk 0:00:08]}  Qe4 {[%clk 0:00:12]} 33. Rd3 {[%clk 0:00:08]}  Qe7 {[%clk 0:00:09]} 34. Qd1 {[%clk 0:00:06]}  Qc5 {[%clk 0:00:08]} 35. Rf3 {[%clk 0:00:06]}  Rd8 {[%clk 0:00:08]} 36. Qe2 {[%clk 0:00:06]}  Qd6 {[%clk 0:00:08]} 37. Qe4 {[%clk 0:00:06]}  Qd7 {[%clk 0:00:06]} 38. h4 {[%clk 0:00:06]}  Bc5 {[%clk 0:00:06]} 39. a4 {[%clk 0:00:06]}  b6 {[%clk 0:00:07]} 40. h5 {[%clk 0:00:06]}  a5 {[%clk 0:00:07]} 41. Re1 {[%clk 0:00:06]}  Qd4 {[%clk 0:00:07]} 42. Qxd4 {[%clk 0:00:04]}  Rxd4 {[%clk 0:00:07]} 43. Ra1 {[%clk 0:00:03]}  Rd5 {[%clk 0:00:07]} 44. g4 {[%clk 0:00:04]}  Rg5 {[%clk 0:00:07]} 45. Rf4 {[%clk 0:00:03]}  Rd5 {[%clk 0:00:07]} 46. Kg2 {[%clk 0:00:03]}  Rd3 {[%clk 0:00:07]} 47. Re1 {[%clk 0:00:03]}  Kh7 {[%clk 0:00:06]} 48. Re8 {[%clk 0:00:03]}  Rd7 {[%clk 0:00:06]} 49. Rc8 {[%clk 0:00:03]}  Rd2 {[%clk 0:00:06]} 50. Kg3 {[%clk 0:00:02]}  Rd3+ {[%clk 0:00:06]} 51. Rf3 {[%clk 0:00:02]}  Bd6+ {[%clk 0:00:06]} 52. Kg2 {[%clk 0:00:03]}  Rd4 {[%clk 0:00:07]} 53. Kh3 {[%clk 0:00:02]}  Bc5 {[%clk 0:00:06]} 54. Ra8 {[%clk 0:00:02]}  Rxa4 {[%clk 0:00:05]} 55. Rd3 {[%clk 0:00:02]}  Ra3 {[%clk 0:00:02]} 56. Rxa3 {[%clk 0:00:02]}  Bxa3 {[%clk 0:00:03]} 57. f4 {[%clk 0:00:03]}  Bc5 {[%clk 0:00:03]} 58. g5 {[%clk 0:00:03]}  hxg5 {[%clk 0:00:04]} 59. fxg5 {[%clk 0:00:04]}  Be3 {[%clk 0:00:05]} 60. Kg4 {[%clk 0:00:04]}  g6 {[%clk 0:00:05]} 61. Ra7+ {[%clk 0:00:04]}  Kg8 {[%clk 0:00:05]} 62. h6 {[%clk 0:00:04]}  Bd4 {[%clk 0:00:06]} 63. Rd7 {[%clk 0:00:04]}  Bc3 {[%clk 0:00:06]} 64. Rd6 {[%clk 0:00:04]}  a4 {[%clk 0:00:06]} 65. Rxg6+ {[%clk 0:00:04]}  Kh7 {[%clk 0:00:06]} 66. Rxb6 {[%clk 0:00:04]}  a3 {[%clk 0:00:07]} 67. Ra6 {[%clk 0:00:05]}  Bb2 {[%clk 0:00:08]} 68. Kh5 {[%clk 0:00:05]}  Kg8 {[%clk 0:00:08]} 69. g6 {[%clk 0:00:06]}  Kf8 {[%clk 0:00:09]} 70. Ra8+ {[%clk 0:00:06]}  Ke7 {[%clk 0:00:09]} 71. g7 {[%clk 0:00:07]}  a2 {[%clk 0:00:05]} 72. Rxa2 {[%clk 0:00:07]} 1-0


[Site "https://www.chess.com"]

[Event "Titled Tuesday Blitz August 15 Early 2023"]
[White "Grischuk, Alexander"]
[Black "Wong, Yinn Long"]
[WhiteFideId "4126025"]
[BlackFideId "5707684"]
[WhiteElo "3036"]
[BlackElo "2730"]
[Result "1-0"]
[Round "8"]
[TimeControl "180+1"]
[Date "2023.08.15"]
[WhiteClock "0:00:23"]
[BlackClock "0:00:00"]
[Board "20"]

1. d4 {[%clk 0:03:00]}  Nf6 {[%clk 0:02:59]} 2. Nf3 {[%clk 0:03:01]}  e6 {[%clk 0:02:59]} 3. c4 {[%clk 0:03:01]}  Bb4+ {[%clk 0:02:59]} 4. Nbd2 {[%clk 0:03:01]}  O-O {[%clk 0:02:57]} 5. a3 {[%clk 0:03:01]}  Be7 {[%clk 0:02:57]} 6. e4 {[%clk 0:03:00]}  d6 {[%clk 0:02:58]} 7. Be2 {[%clk 0:03:00]}  Nfd7 {[%clk 0:02:58]} 8. Nb1 {[%clk 0:02:45]}  e5 {[%clk 0:02:56]} 9. Nc3 {[%clk 0:02:38]}  exd4 {[%clk 0:02:53]} 10. Nxd4 {[%clk 0:02:39]}  Nc6 {[%clk 0:02:51]} 11. Be3 {[%clk 0:02:37]}  Bf6 {[%clk 0:02:44]} 12. O-O {[%clk 0:02:35]}  Re8 {[%clk 0:02:36]} 13. Rc1 {[%clk 0:02:28]}  Nxd4 {[%clk 0:02:28]} 14. Bxd4 {[%clk 0:02:28]}  Bxd4 {[%clk 0:02:29]} 15. Qxd4 {[%clk 0:02:29]}  Qf6 {[%clk 0:02:29]} 16. Qxf6 {[%clk 0:02:23]}  Nxf6 {[%clk 0:02:29]} 17. f3 {[%clk 0:02:24]}  Bd7 {[%clk 0:02:18]} 18. Rfd1 {[%clk 0:02:20]}  Rac8 {[%clk 0:02:07]} 19. b4 {[%clk 0:02:16]}  Kf8 {[%clk 0:01:53]} 20. Kf2 {[%clk 0:02:16]}  Re7 {[%clk 0:01:40]} 21. Rd2 {[%clk 0:02:11]}  Bc6 {[%clk 0:01:23]} 22. a4 {[%clk 0:01:57]}  b6 {[%clk 0:01:15]} 23. a5 {[%clk 0:01:46]}  bxa5 {[%clk 0:01:08]} 24. b5 {[%clk 0:01:46]}  Bb7 {[%clk 0:01:04]} 25. Ra1 {[%clk 0:01:38]}  a6 {[%clk 0:01:05]} 26. bxa6 {[%clk 0:01:32]}  Bxa6 {[%clk 0:01:05]} 27. Rxa5 {[%clk 0:01:31]}  Bb7 {[%clk 0:01:05]} 28. c5 {[%clk 0:01:32]}  dxc5 {[%clk 0:00:52]} 29. Rxc5 {[%clk 0:01:30]}  g6 {[%clk 0:00:32]} 30. Rb2 {[%clk 0:01:27]}  Ba8 {[%clk 0:00:29]} 31. g4 {[%clk 0:01:12]}  h5 {[%clk 0:00:27]} 32. g5 {[%clk 0:01:12]}  Nd7 {[%clk 0:00:25]} 33. Ra5 {[%clk 0:01:12]}  Bc6 {[%clk 0:00:20]} 34. h3 {[%clk 0:01:05]}  Nb6 {[%clk 0:00:19]} 35. Rc5 {[%clk 0:01:03]}  Be8 {[%clk 0:00:20]} 36. Ra2 {[%clk 0:01:00]}  Nd7 {[%clk 0:00:18]} 37. Rca5 {[%clk 0:00:59]}  Nb6 {[%clk 0:00:16]} 38. h4 {[%clk 0:00:59]}  Kg7 {[%clk 0:00:15]} 39. Rd2 {[%clk 0:00:50]}  Bc6 {[%clk 0:00:13]} 40. Rc5 {[%clk 0:00:47]}  Be8 {[%clk 0:00:14]} 41. Ra2 {[%clk 0:00:44]}  Bd7 {[%clk 0:00:11]} 42. f4 {[%clk 0:00:41]}  Be8 {[%clk 0:00:09]} 43. f5 {[%clk 0:00:40]}  Kf8 {[%clk 0:00:07]} 44. f6 {[%clk 0:00:34]}  Re6 {[%clk 0:00:07]} 45. Ra7 {[%clk 0:00:33]}  Rc6 {[%clk 0:00:08]} 46. Rxc6 {[%clk 0:00:30]}  Bxc6 {[%clk 0:00:09]} 47. Ba6 {[%clk 0:00:28]}  Ra8 {[%clk 0:00:04]} 48. Rxc7 {[%clk 0:00:28]}  Be8 {[%clk 0:00:04]} 49. Bb5 {[%clk 0:00:23]}  Bxb5 {[%clk 0:00:03]} 50. Nxb5 {[%clk 0:00:24]}  Re8 {[%clk 0:00:00]} 51. Nd6 {[%clk 0:00:23]} 1-0


[Site "https://www.chess.com"]